bitfinex/quotes_BTCUSD_20240906
["timestamp","ask_amount","ask_price","bid_price","bid_amount"]
[1725613523570,0.02000954,55928.0,55927.0,0.28838748]
[1725613523783,0.02000954,55928.0,55927.0,0.28138748]
[1725613524020,0.02000954,55928.0,55927.0,0.29438748]
[1725613524257,0.01760954,55928.0,55927.0,0.29438748]
[1725613524749,0.19641054,55928.0,55927.0,0.11558348]
[1725613525176,0.58089274,55928.0,55927.0,0.11558348]
[1725613525405,0.29149074,55928.0,55927.0,0.11558348]
[1725613525871,0.2914917,55928.0,55927.0,0.11558348]
[1725613526089,0.26461054,55928.0,55927.0,0.11558348]
[1725613526317,0.2914913,55928.0,55927.0,0.11558348]
[1725613527036,0.29149275,55928.0,55927.0,0.11558348]
[1725613527261,0.11269175,55928.0,55927.0,0.11558348]
[1725613527483,0.11269159,55928.0,55927.0,0.11558348]
[1725613527901,0.11269153,55928.0,55927.0,0.11558348]
[1725613528157,0.64909453,55928.0,55927.0,0.11558348]
[1725613529711,1.00669653,55928.0,55927.0,0.11558348]
[1725613529931,0.64909453,55928.0,55927.0,0.10258411]
[1725613530154,0.29149253,55928.0,55927.0,0.11558348]
[1725613530390,0.29149182,55928.0,55927.0,0.11558348]
[1725613531045,0.64909382,55928.0,55927.0,0.11558348]
[1725613531274,0.29149182,55928.0,55927.0,0.11558348]
[1725613531520,0.04689082,55928.0,55927.0,0.11558348]
[1725613531743,0.58329382,55928.0,55927.0,0.11558348]
[1725613531953,0.55641331,55928.0,55927.0,0.11558348]
[1725613532601,0.91401531,55928.0,55927.0,0.11558348]
[1725613532857,0.55641331,55928.0,55927.0,0.03799937]
[1725613533069,0.55641331,55928.0,55927.0,0.025]
[1725613533761,0.539613,55928.0,55927.0,0.03895882]
[1725613534024,0.55641404,55928.0,55927.0,0.03895882]
[1725613534504,0.55401404,55928.0,55927.0,0.03895882]
[1725613535415,0.19641204,55928.0,55927.0,0.11386983]
[1725613535648,0.55401404,55928.0,55927.0,0.11386983]
[1725613535872,0.55401404,55928.0,55927.0,0.03895882]
[1725613537235,0.537213,55928.0,55927.0,0.03895882]
[1725613537515,0.537213,55928.0,55927.0,0.04058882]
[1725613537516,0.55401404,55928.0,55927.0,0.04058882]
[1725613537730,0.19641204,55928.0,55927.0,0.04058882]
[1725613537942,0.01761104,55928.0,55927.0,1.00759006]
[1725613538174,0.01761104,55928.0,55927.0,0.64998106]
[1725613538838,0.00652,55934.0,55927.0,0.11356806]
[1725613539048,0.00652,55934.0,55927.0,0.21939182]
[1725613539049,0.178795,55930.0,55927.0,0.21939182]
[1725613539268,0.178795,55930.0,55927.0,0.04058882]
[1725613539269,0.536403,55928.0,55927.0,0.04058882]
[1725613539518,1.251607,55928.0,55927.0,0.04058882]
[1725613539738,1.251607,55928.0,55927.0,0.01463]
[1725613539970,0.894005,55928.0,55927.0,0.00163]
[1725613540200,0.894005,55928.0,55927.0,0.01363]
[1725613540432,0.894005,55928.0,55927.0,0.00763]
[1725613540895,0.894005,55928.0,55927.0,0.02063]
[1725613541131,0.894005,55928.0,55927.0,0.00763]
[1725613541596,0.894005,55928.0,55927.0,0.01463]
[1725613541810,0.894005,55928.0,55927.0,0.00863]
[1725613542017,0.894005,55928.0,55927.0,0.02063]
[1725613542475,0.894005,55928.0,55927.0,0.00863]
[1725613543185,0.894005,55928.0,55927.0,0.01763]
[1725613543598,0.894005,55928.0,55927.0,0.00163]
[1725613543814,0.894005,55928.0,55927.0,0.00863]
[1725613544257,0.894005,55928.0,55927.0,0.00163]
[1725613544647,0.894005,55928.0,55927.0,0.01063]
[1725613544860,1.251607,55928.0,55927.0,0.01063]
[1725613545293,1.251607,55928.0,55927.0,0.01863]
[1725613545493,0.894005,55928.0,55927.0,0.01863]
[1725613546133,1.251607,55928.0,55927.0,0.01863]
[1725613546588,0.894005,55928.0,55927.0,0.01863]
[1725613546812,1.251607,55928.0,55927.0,0.01863]
[1725613547768,0.894005,55928.0,55927.0,0.01863]
[1725613548434,1.251607,55928.0,55927.0,0.01863]
[1725613548668,0.894005,55928.0,55927.0,0.01863]
[1725613548919,0.89482,55928.0,55927.0,0.01863]
[1725613549209,0.537218,55928.0,55927.0,0.01863]
[1725613549441,0.59082722,55928.0,55927.0,0.01863]
[1725613549659,0.537218,55928.0,55927.0,0.01863]
[1725613549895,0.537218,55928.0,55927.0,0.03258882]
[1725613550824,0.55401824,55928.0,55927.0,0.03258882]
[1725613551040,0.91162024,55928.0,55927.0,0.03258882]
[1725613551484,0.91162024,55928.0,55927.0,0.02358882]
[1725613551938,0.91162024,55928.0,55927.0,0.01558882]
[1725613552177,0.91162024,55928.0,55927.0,0.02358882]
[1725613552796,0.91162024,55928.0,55927.0,0.01558882]
[1725613553027,0.91162024,55928.0,55927.0,0.02758882]
[1725613553472,0.91162024,55928.0,55927.0,0.28658882]
[1725613554137,0.91162133,55928.0,55927.0,0.28658882]
[1725613554372,0.91162133,55928.0,55927.0,0.27758882]
[1725613554849,0.91162133,55928.0,55927.0,0.29058882]
[1725613557485,0.89482,55928.0,55927.0,0.29058882]
[1725613557708,0.55401906,55928.0,55927.0,0.29058882]
[1725613557921,0.55401906,55928.0,55927.0,0.46855176]
[1725613558570,0.55401906,55928.0,55927.0,0.29058882]
[1725613560883,0.55401875,55928.0,55927.0,0.29058882]
[1725613561941,0.60764178,55928.0,55927.0,0.29058882]
[1725613562127,0.60770021,55928.0,55927.0,0.29058882]
[1725613562567,0.55401875,55928.0,55927.0,0.29058882]
[1725613563301,0.60770021,55928.0,55927.0,0.29058882]
[1725613563528,0.55401875,55928.0,55927.0,0.29058882]
[1725613565282,0.96530221,55928.0,55927.0,0.29058882]
[1725613565482,0.91162075,55928.0,55927.0,0.29058882]
[1725613565697,0.55401875,55928.0,55927.0,0.29058882]
[1725613566122,0.55380357,55928.0,55927.0,0.29058882]
[1725613568496,0.01761575,55928.0,55927.0,1.14441067]
[1725613568701,0.01761575,55928.0,55927.0,1.50201967]
[1725613569388,0.01761575,55928.0,55927.0,2.03513963]
[1725613570038,0.01761575,55928.0,55927.0,2.02213963]
[1725613570251,0.01761575,55928.0,55927.0,2.03313963]
[1725613570474,0.01761575,55928.0,55927.0,2.04713963]
[1725613570710,0.01761231,55928.0,55927.0,2.03313963]
[1725613571124,0.01761231,55928.0,55927.0,2.04713963]
[1725613571605,0.01761231,55928.0,55927.0,2.06013963]
[1725613571803,0.01761231,55928.0,55927.0,2.04613963]
[1725613572089,0.01761231,55928.0,55927.0,2.28008557]
[1725613572317,0.01761231,55928.0,55927.0,2.26708557]
[1725613572545,0.01761231,55928.0,55927.0,2.28108557]
[1725613572976,0.01761231,55928.0,55927.0,2.26708557]
[1725613573207,0.000815,55928.0,55927.0,2.28108557]
[1725613573417,0.01761225,55928.0,55927.0,2.29508557]
[1725613573628,0.01761225,55928.0,55927.0,2.28108557]
[1725613574052,0.01761266,55928.0,55927.0,1.68053063]
[1725613574260,0.01761266,55928.0,55927.0,2.03813963]
[1725613574704,0.01761266,55928.0,55927.0,2.02413963]
[1725613574919,0.01761266,55928.0,55927.0,2.03813963]
[1725613577704,0.01761266,55928.0,55927.0,1.50501967]
[1725613577935,0.01761266,55928.0,55927.0,0.78980167]
[1725613578623,0.01761266,55928.0,55927.0,1.50501967]
[1725613578848,0.01761266,55928.0,55927.0,1.14741067]
[1725613578849,0.000815,55928.0,55927.0,1.14741067]
[1725613579530,0.000815,55928.0,55927.0,1.13341067]
[1725613579966,0.01761325,55928.0,55927.0,1.13341067]
[1725613580195,0.01761325,55928.0,55927.0,1.11941067]
[1725613580461,0.01761325,55928.0,55927.0,1.13341067]
[1725613580664,0.01761325,55928.0,55927.0,1.49101967]
[1725613580898,0.01761325,55928.0,55927.0,1.11941067]
[1725613581402,0.01761325,55928.0,55927.0,1.49101967]
[1725613581643,0.01761325,55928.0,55927.0,1.50501967]
[1725613581875,0.01761325,55928.0,55927.0,1.14741067]
[1725613583065,0.03441265,55928.0,55927.0,1.14741067]
[1725613585698,0.03441265,55928.0,55927.0,1.50501967]
[1725613586320,0.01761325,55928.0,55927.0,1.50501967]
[1725613586542,0.03441182,55928.0,55927.0,1.50501967]
[1725613587144,0.03441182,55928.0,55927.0,2.03813963]
[1725613588721,0.03441182,55928.0,55927.0,1.50501967]
[1725613588957,0.21321282,55928.0,55927.0,0.36919767]
[1725613589187,0.03441182,55928.0,55927.0,0.36919767]
[1725613589413,0.57081482,55928.0,55927.0,0.36919767]
[1725613589893,0.57081482,55928.0,55927.0,0.35519767]
[1725613591074,0.55401657,55928.0,55927.0,0.36919767]
[1725613591350,0.55401657,55928.0,55927.0,0.35519767]
[1725613591763,0.55401657,55928.0,55927.0,0.36919767]
[1725613592004,0.91161857,55928.0,55927.0,0.36919767]
[1725613592243,0.55401657,55928.0,55927.0,0.35519767]
[1725613592453,0.55401657,55928.0,55927.0,0.36919767]
[1725613592686,0.91161857,55928.0,55927.0,0.29358882]
[1725613592908,0.91160589,55928.0,55927.0,0.27958882]
[1725613593137,0.91160589,55928.0,55927.0,0.26563]
[1725613593390,0.91160589,55928.0,55927.0,0.27963]
[1725613596144,0.91160589,55928.0,55927.0,0.29358728]
[1725613596397,0.91160583,55928.0,55927.0,0.29358728]
[1725613596638,0.01760083,55928.0,55927.0,0.59314259]
[1725613596868,0.01760083,55928.0,55927.0,1.29110927]
[1725613597072,0.01760083,55928.0,55927.0,1.66267555]
[1725613599210,0.91160583,55928.0,55927.0,0.29358728]
[1725613599672,0.91160854,55928.0,55927.0,0.29358728]
[1725613599875,0.91160854,55928.0,55927.0,0.27963]
[1725613600774,0.91160854,55928.0,55927.0,0.27958728]
[1725613601008,0.91160854,55928.0,55927.0,0.26558728]
[1725613601642,0.91160854,55928.0,55927.0,0.27658728]
[1725613601857,0.91160854,55928.0,55927.0,0.26558728]
[1725613602267,0.91160854,55928.0,55927.0,0.28758728]
[1725613602687,0.91160854,55928.0,55927.0,0.27658728]
[1725613603102,0.91160854,55928.0,55927.0,0.28658728]
[1725613605960,0.91161869,55928.0,55927.0,0.28658728]
[1725613606404,0.55401669,55928.0,55927.0,0.36410873]
[1725613608784,0.55401669,55928.0,55927.0,0.59880873]
[1725613609219,0.537218,55928.0,55927.0,0.59880873]
[1725613609644,0.554012,55928.0,55927.0,0.59880873]
[1725613610079,0.19641,55928.0,55927.0,0.59880873]
[1725613610561,0.017609,55928.0,55927.0,0.59880873]
[1725613610774,0.017609,55928.0,55927.0,1.54801569]
[1725613611026,0.017609,55928.0,55927.0,2.25993965]
[1725613611249,0.017609,55928.0,55927.0,1.66834169]
[1725613612347,0.017609,55928.0,55927.0,0.77761273]
[1725613612594,0.017609,55928.0,55927.0,1.13522173]
[1725613612810,0.017609,55928.0,55927.0,0.59880873]
[1725613613043,0.19641,55928.0,55927.0,0.59880873]
[1725613614568,0.554012,55928.0,55927.0,0.59880873]
[1725613615450,0.554012,55928.0,55927.0,0.47725145]
[1725613615681,0.554012,55928.0,55927.0,0.49106802]
[1725613616556,0.01679331,55928.0,55927.0,0.49106802]
[1725613616782,0.19559431,55928.0,55927.0,0.49106802]
[1725613617278,0.01679331,55928.0,55927.0,0.49106802]
[1725613617516,0.01679331,55928.0,55927.0,1.13058102]
[1725613618675,0.01679331,55928.0,55927.0,2.02330998]
[1725613618906,0.01679331,55928.0,55927.0,2.04430998]
[1725613619117,0.0536375,55945.0,55941.0,0.178759]
[1725613619334,0.70525315,55945.0,55941.0,0.178759]
[1725613619516,0.4111295,55946.0,55942.0,0.01378168]
[1725613619799,0.357492,55946.0,55942.0,0.01378168]
[1725613620039,0.178751,55944.0,55940.0,0.412062]
[1725613620265,0.178751,55944.0,55943.0,0.01377936]
[1725613620496,0.278751,55944.0,55943.0,0.07398888]
[1725613620729,0.278751,55944.0,55943.0,0.01377936]
[1725613621186,0.278751,55944.0,55942.0,0.007]
[1725613621396,0.278751,55944.0,55943.0,0.01377936]
[1725613621614,0.1,55944.0,55943.0,0.088147]
[1725613621831,0.1,55944.0,55943.0,0.097147]
[1725613622287,0.1,55944.0,55943.0,0.990912]
[1725613622498,0.178738,55948.0,55944.0,0.178749]
[1725613622722,0.1,55947.0,55946.0,0.178743]
[1725613622951,0.179552,55950.0,55945.0,0.19251971]
[1725613622952,0.278736,55949.0,55945.0,0.19251971]
[1725613623166,0.278736,55949.0,55946.0,0.19251538]
[1725613623583,0.278736,55949.0,55947.0,0.1302]
[1725613623789,0.278736,55949.0,55947.0,0.14397006]
[1725613624028,0.278736,55949.0,55948.0,0.1031]
[1725613624254,0.1,55949.0,55948.0,0.65307873]
[1725613624475,0.00082,55950.0,55949.0,0.536202]
[1725613624919,0.358282,55950.0,55949.0,0.01376541]
[1725613625128,0.994475,55950.0,55949.0,0.01376541]
[1725613625332,0.458282,55950.0,55945.0,0.003]
[1725613625541,0.17874,55948.0,55944.0,0.178749]
[1725613625839,0.278736,55949.0,55946.0,0.01377238]
[1725613626045,0.178738,55948.0,55945.0,0.01377471]
[1725613626260,0.178738,55948.0,55944.0,0.178749]
[1725613626261,0.178738,55948.0,55947.0,0.01377006]
[1725613626467,0.357469,55949.0,55946.0,0.01377238]
[1725613626677,0.178738,55948.0,55947.0,0.01377006]
[1725613627095,0.178735,55949.0,55945.0,0.181745]
[1725613627322,0.178737,55948.0,55947.0,0.01377006]
[1725613627554,0.178737,55948.0,55946.0,0.01377238]
[1725613627795,0.536211,55948.0,55947.0,0.01377006]
[1725613628039,0.536211,55948.0,55947.0,0.01877006]
[1725613628257,0.536211,55948.0,55947.0,0.005]
[1725613628513,0.536211,55948.0,55947.0,0.01877006]
[1725613628787,0.536211,55948.0,55947.0,0.005]
[1725613628990,0.536211,55948.0,55947.0,0.02377006]
[1725613629201,0.536211,55948.0,55947.0,0.01]
[1725613629410,0.536211,55948.0,55947.0,0.02377006]
[1725613629624,0.178737,55948.0,55947.0,0.02377006]
[1725613631153,0.55300082,55948.0,55947.0,0.12417006]
[1725613631350,0.19552682,55948.0,55947.0,0.12417006]
[1725613631790,0.55381682,55948.0,55947.0,0.12417006]
[1725613631993,0.19634282,55948.0,55947.0,0.02377006]
[1725613633417,0.55381682,55948.0,55947.0,0.02377006]
[1725613633860,0.55381682,55948.0,55947.0,0.01]
[1725613633861,1.72623882,55948.0,55947.0,0.01]
[1725613634141,1.79143882,55948.0,55947.0,0.02377006]
[1725613634318,1.86256344,55948.0,55947.0,0.01]
[1725613634578,0.536403,55928.0,55927.0,0.25163]
[1725613634768,1.12799396,55928.0,55927.0,0.25163]
[1725613635015,1.50238383,55928.0,55927.0,0.26544657]
[1725613635226,1.60238383,55928.0,55927.0,0.25163]
[1725613635679,1.60238383,55928.0,55927.0,0.25763]
[1725613636136,1.60238383,55928.0,55927.0,0.25463]
[1725613636785,1.60211343,55928.0,55927.0,0.25163]
[1725613637007,1.95971543,55928.0,55927.0,0.25163]
[1725613637229,2.04000882,55928.0,55927.0,0.25163]
[1725613637452,1.6556424,55928.0,55927.0,0.25163]
[1725613637679,1.65564237,55928.0,55927.0,0.25163]
[1725613637900,1.65664237,55928.0,55927.0,0.25163]
[1725613638371,1.6800341,55928.0,55927.0,0.25163]
[1725613638592,1.63150513,55928.0,55927.0,0.25163]
[1725613638800,1.62750513,55928.0,55927.0,0.25163]
[1725613639210,1.63050513,55928.0,55927.0,0.25163]
[1725613639429,1.6840341,55928.0,55927.0,0.25163]
[1725613639859,1.71079859,55928.0,55927.0,0.25163]
[1725613640234,1.71579859,55928.0,55927.0,0.25163]
[1725613640843,1.63550513,55928.0,55927.0,0.25163]
[1725613641348,1.03391417,55928.0,55927.0,0.25163]
[1725613641551,0.19558884,55928.0,55927.0,0.26544657]
[1725613641754,0.19958884,55928.0,55927.0,0.26544657]
[1725613641965,0.19758884,55928.0,55927.0,0.26544657]
[1725613642385,0.55319084,55928.0,55927.0,0.26644657]
[1725613642613,0.55319084,55928.0,55927.0,0.27444657]
[1725613642820,0.55319084,55928.0,55927.0,0.27344657]
[1725613643031,0.55400684,55928.0,55927.0,0.28144657]
[1725613644492,0.537219,55928.0,55927.0,0.28144657]
[1725613644708,0.894821,55928.0,55927.0,0.28144657]
[1725613646493,0.91162266,55928.0,55927.0,0.28144657]
[1725613655944,1.26922466,55928.0,55927.0,0.28144657]
[1725613656142,0.91162266,55928.0,55927.0,0.26763]
[1725613656414,0.91162266,55928.0,55927.0,0.28144657]
[1725613657932,1.62682666,55928.0,55927.0,0.28144657]
[1725613658176,1.72682666,55928.0,55927.0,0.28144657]
[1725613658381,1.72682666,55928.0,55927.0,0.26763]
[1725613658871,1.72682666,55928.0,55927.0,0.25963]
[1725613659097,1.37122466,55928.0,55927.0,0.25163]
[1725613659286,1.37322466,55928.0,55927.0,0.25163]
[1725613659497,1.36922466,55928.0,55927.0,0.25163]
[1725613660985,1.36922466,55928.0,55927.0,0.49583]
[1725613661613,1.36922466,55928.0,55927.0,0.50964657]
[1725613661754,1.36922494,55928.0,55927.0,0.51464657]
[1725613661962,1.36922494,55928.0,55927.0,0.51164657]
[1725613662155,1.36922494,55928.0,55927.0,0.50964657]
[1725613662354,1.37022494,55928.0,55927.0,0.51664657]
[1725613662561,1.37122494,55928.0,55927.0,0.52364657]
[1725613663253,0.29741894,55928.0,55927.0,0.59420879]
[1725613663708,0.178801,55928.0,55927.0,0.59420879]
[1725613663923,0.45756,55935.0,55928.0,0.178798]
[1725613664130,0.178785,55933.0,55929.0,0.178796]
[1725613664330,0.178785,55933.0,55930.0,0.178794]
[1725613664650,0.178785,55933.0,55931.0,0.01380726]
[1725613664856,0.178788,55932.0,55931.0,0.01380726]
[1725613665075,0.178788,55932.0,55929.0,0.178797]
[1725613665290,0.178793,55931.0,55929.0,0.002]
[1725613665504,0.178788,55932.0,55929.0,0.002]
[1725613665718,0.1,55930.0,55929.0,0.002]
[1725613666353,0.1,55930.0,55927.0,0.853434]
[1725613666354,0.457591,55930.0,55927.0,0.49583]
[1725613666586,0.178801,55928.0,55927.0,0.49583]
[1725613667216,0.457591,55930.0,55927.0,0.49583]
[1725613667217,0.636388,55930.0,55927.0,0.49583]
[1725613667432,0.178798,55929.0,55927.0,0.49583]
[1725613667652,0.178801,55928.0,55927.0,0.49583]
[1725613668347,0.179801,55928.0,55927.0,0.50383]
[1725613668766,0.179801,55928.0,55927.0,0.51083]
[1725613669193,0.537403,55928.0,55927.0,0.50383]
[1725613669417,0.537403,55928.0,55927.0,0.51183]
[1725613670637,0.895005,55928.0,55927.0,0.51183]
[1725613672073,0.895005,55928.0,55927.0,0.52564657]
[1725613674492,0.895005,55928.0,55927.0,0.41494657]
[1725613675723,0.895005,55928.0,55927.0,0.28144657]
[1725613675724,0.91180698,55928.0,55927.0,0.28144657]
[1725613675930,1.26940898,55928.0,55927.0,0.28144657]
[1725613676568,1.34579456,55928.0,55927.0,0.28144657]
[1725613676830,1.00449238,55928.0,55927.0,0.28144657]
[1725613677020,1.18329338,55928.0,55927.0,0.26763]
[1725613677262,1.18329338,55928.0,55927.0,0.28144657]
[1725613677725,1.18329338,55928.0,55927.0,0.26763]
[1725613677726,1.23688385,55928.0,55927.0,0.26763]
[1725613678158,1.26024752,55928.0,55927.0,0.26763]
[1725613678590,1.20665769,55928.0,55927.0,0.26763]
[1725613679334,1.26029804,55928.0,55927.0,0.26763]
[1725613679552,1.2871822,55928.0,55927.0,0.51163]
[1725613679779,1.2871822,55928.0,55927.0,0.52544657]
[1725613680238,1.26033898,55928.0,55927.0,0.52544657]
[1725613680455,1.26033768,55928.0,55927.0,0.52544657]
[1725613680915,0.82569073,55928.0,55927.0,0.52544657]
[1725613681141,0.46808873,55928.0,55927.0,0.52544657]
[1725613681381,1.18329273,55928.0,55927.0,0.26763]
[1725613681608,1.18329273,55928.0,55927.0,0.28144657]
[1725613681609,1.26381659,55928.0,55927.0,0.28144657]
[1725613681859,1.18329273,55928.0,55927.0,0.26763]
[1725613682075,1.18329273,55928.0,55927.0,0.28144657]
[1725613682278,1.41728169,55928.0,55927.0,0.28144657]
[1725613682483,1.52464819,55928.0,55927.0,0.26763]
[1725613682687,1.41728305,55928.0,55927.0,0.26763]
[1725613682933,1.52464819,55928.0,55927.0,0.26763]
[1725613684472,1.5078455,55928.0,55927.0,0.26763]
[1725613684688,1.52464818,55928.0,55927.0,0.26763]
[1725613686692,1.49371222,55928.0,55927.0,0.26763]
[1725613686891,1.85131422,55928.0,55927.0,0.26763]
[1725613687351,1.77488504,55928.0,55927.0,0.26763]
[1725613688521,1.85131331,55928.0,55927.0,0.26763]
[1725613688930,2.01236103,55928.0,55927.0,0.26763]
[1725613689159,1.85131331,55928.0,55927.0,0.26763]
[1725613689361,2.11242159,55928.0,55927.0,0.26763]
[1725613689732,1.95131331,55928.0,55927.0,0.26763]
[1725613690341,2.11242399,55928.0,55927.0,0.25963]
[1725613690544,1.95131331,55928.0,55927.0,0.25963]
[1725613690770,2.11242399,55928.0,55927.0,0.25463]
[1725613690951,1.93451063,55928.0,55927.0,0.25463]
[1725613691160,1.95131322,55928.0,55927.0,0.25163]
[1725613691700,1.95312922,55928.0,55927.0,0.25163]
[1725613692143,2.39693122,55928.0,55927.0,0.25163]
[1725613692593,2.33003122,55928.0,55927.0,0.25163]
[1725613694125,2.30292863,55928.0,55927.0,0.25163]
[1725613694350,1.96312833,55928.0,55927.0,0.25163]
[1725613694817,1.96412833,55928.0,55927.0,0.25163]
[1725613695247,1.72313937,55928.0,55927.0,0.25163]
[1725613695463,1.72113937,55928.0,55927.0,0.25163]
[1725613695738,1.36353737,55928.0,55927.0,0.25163]
[1725613695947,1.1871091,55928.0,55927.0,0.25163]
[1725613696152,1.32425662,55928.0,55927.0,0.25163]
[1725613696565,1.32125662,55928.0,55927.0,0.25163]
[1725613697230,1.32125795,55928.0,55927.0,0.25163]
[1725613697464,1.42425795,55928.0,55927.0,0.25163]
[1725613697672,1.42125795,55928.0,55927.0,0.25163]
[1725613697877,1.41825795,55928.0,55927.0,0.25163]
[1725613698543,1.41825794,55928.0,55927.0,0.25463]
[1725613698983,1.28411042,55928.0,55927.0,0.25763]
[1725613699186,1.59459128,55928.0,55927.0,0.25763]
[1725613699401,1.51809938,55928.0,55927.0,0.25763]
[1725613699865,1.41825965,55928.0,55927.0,0.25763]
[1725613700080,1.41825965,55928.0,55927.0,0.38963]
[1725613705747,1.41826342,55928.0,55927.0,0.38963]
[1725613706762,1.41826341,55928.0,55927.0,0.38963]
[1725613706960,1.28411041,55928.0,55927.0,0.38963]
[1725613707165,1.41826341,55928.0,55927.0,0.38963]
[1725613707440,1.4014604,55928.0,55927.0,0.38963]
[1725613707863,1.40146352,55928.0,55927.0,0.38963]
[1725613708098,1.2673074,55928.0,55927.0,0.38963]
[1725613709068,1.28411014,55928.0,55927.0,0.38963]
[1725613709316,1.28411014,55928.0,55927.0,0.49273]
[1725613709317,0.22493864,55928.0,55927.0,0.49273]
[1725613709521,0.29641974,55928.0,55927.0,0.49273]
[1725613709731,0.70767917,55928.0,55927.0,0.50654657]
[1725613709919,0.35007717,55928.0,55927.0,0.50654657]
[1725613710184,0.35007646,55928.0,55927.0,0.50654657]
[1725613710393,0.65402174,55928.0,55927.0,0.50654657]
[1725613711663,0.7076843,55928.0,55927.0,0.50654657]
[1725613711882,0.65402174,55928.0,55927.0,0.50654657]
[1725613712313,0.65402174,55928.0,55927.0,0.25654657]
[1725613712773,0.73450607,55928.0,55927.0,0.25654657]
[1725613713248,0.73450484,55928.0,55927.0,0.25654657]
[1725613713497,0.65402051,55928.0,55927.0,0.25654657]
[1725613714627,0.65402051,55928.0,55927.0,1.10198395]
[1725613714628,0.01761751,55928.0,55927.0,1.10198395]
[1725613714835,0.01761751,55928.0,55927.0,0.86799499]
[1725613715901,0.01761751,55928.0,55927.0,0.86199499]
[1725613716339,0.001816,55928.0,55927.0,1.23660399]
[1725613716562,0.01861527,55928.0,55927.0,1.23660399]
[1725613718347,0.01861527,55928.0,55927.0,0.87899499]
[1725613719216,0.01861527,55928.0,55927.0,1.23660399]
[1725613719466,0.001816,55928.0,55927.0,1.23660399]
[1725613719687,0.01861504,55928.0,55927.0,1.23660399]
[1725613720116,0.01861504,55928.0,55927.0,1.59421299]
[1725613721418,0.01861504,55928.0,55927.0,1.23660399]
[1725613725118,0.01861504,55928.0,55927.0,1.59421299]
[1725613725707,0.01861504,55928.0,55927.0,1.23660399]
[1725613726005,0.01861504,55928.0,55927.0,1.59421299]
[1725613727324,0.01861504,55928.0,55927.0,1.82820195]
[1725613727762,0.01861504,55928.0,55927.0,1.47059295]
[1725613728182,0.01861504,55928.0,55927.0,1.7189986]
[1725613728402,0.001816,55928.0,55927.0,1.7189986]
[1725613728637,0.01861362,55928.0,55927.0,1.7189986]
[1725613729958,0.001816,55928.0,55927.0,1.7189986]
[1725613730423,0.001816,55928.0,55927.0,1.89450956]
[1725613732774,0.001816,55928.0,55927.0,1.76972395]
[1725613733304,0.01861362,55928.0,55927.0,1.59421299]
[1725613733960,0.01761362,55928.0,55927.0,1.58521299]
[1725613734641,0.01761362,55928.0,55927.0,1.57721299]
[1725613734874,0.01761362,55928.0,55927.0,1.59821299]
[1725613735361,0.01761362,55928.0,55927.0,1.59021299]
[1725613736000,0.01761362,55928.0,55927.0,1.60321299]
[1725613736453,0.01761467,55928.0,55927.0,1.60321299]
[1725613736896,0.01761467,55928.0,55927.0,1.7279986]
[1725613739732,0.000816,55928.0,55927.0,1.7279986]
[1725613739945,0.01761372,55928.0,55927.0,1.7279986]
[1725613741176,0.000816,55928.0,55927.0,1.7279986]
[1725613741407,0.01761445,55928.0,55927.0,1.7279986]
[1725613743329,0.000816,55928.0,55927.0,1.7279986]
[1725613743555,0.01761465,55928.0,55927.0,1.7279986]
[1725613743791,0.01761465,55928.0,55927.0,1.3703896]
[1725613744025,0.01761465,55928.0,55927.0,1.24560399]
[1725613746617,0.000816,55928.0,55927.0,1.24560399]
[1725613746865,0.01761458,55928.0,55927.0,1.24560399]
[1725613750116,0.0176149,55928.0,55927.0,1.24560399]
[1725613750378,0.0176149,55928.0,55927.0,1.3703896]
[1725613751254,0.0176149,55928.0,55927.0,1.3573896]
[1725613751671,0.03105406,55928.0,55927.0,1.23360399]
[1725613752137,0.03105406,55928.0,55927.0,1.24760399]
[1725613753453,0.01425516,55928.0,55927.0,1.24760399]
[1725613753660,0.01761489,55928.0,55927.0,1.24760399]
[1725613753875,0.031054,55928.0,55927.0,1.24760399]
[1725613756662,0.031054,55928.0,55927.0,0.88999499]
[1725613756901,0.031054,55928.0,55927.0,0.11848199]
[1725613756902,0.179617,55928.0,55927.0,0.11848199]
[1725613757171,0.97041965,55928.0,55927.0,0.04344657]
[1725613757401,1.43514158,55928.0,55927.0,0.04344657]
[1725613757594,1.58349495,55928.0,55927.0,0.02963]
[1725613757845,1.6601115,55928.0,55927.0,0.01563]
[1725613758081,1.6601115,55928.0,55927.0,0.00163]
[1725613758285,1.53965051,55928.0,55927.0,0.01063]
[1725613758506,1.53965051,55928.0,55927.0,0.01963]
[1725613758727,1.53965051,55928.0,55927.0,0.00163]
[1725613759179,1.59717829,55928.0,55927.0,0.00163]
[1725613759647,1.20776143,55928.0,55927.0,0.00163]
[1725613759891,1.38656243,55928.0,55927.0,0.00163]
[1725613760325,1.4000047,55928.0,55927.0,0.00163]
[1725613760737,1.38656578,55928.0,55927.0,0.00163]
[1725613761606,1.46702736,55928.0,55927.0,0.00163]
[1725613761816,1.46702736,55928.0,55927.0,0.25163]
[1725613762838,1.46784336,55928.0,55927.0,0.25163]
[1725613763261,1.46782748,55928.0,55927.0,0.25163]
[1725613763591,1.38738178,55928.0,55927.0,0.25163]
[1725613764349,1.49463266,55928.0,55927.0,0.25163]
[1725613764766,1.38738178,55928.0,55927.0,0.25163]
[1725613765178,1.38400513,55928.0,55927.0,0.23974332]
[1725613765585,1.49120023,55928.0,55927.0,0.23974332]
[1725613766450,1.38400513,55928.0,55927.0,0.23974332]
[1725613766664,1.32520513,55928.0,55927.0,0.23974332]
[1725613767281,1.32720513,55928.0,55927.0,0.23974332]
[1725613768789,1.40756172,55928.0,55927.0,0.23974332]
[1725613768994,1.32720513,55928.0,55927.0,0.23974332]
[1725613770168,1.32720573,55928.0,55927.0,0.23974332]
[1725613771358,1.68480773,55928.0,55927.0,0.23974332]
[1725613771584,2.2114859,55928.0,55927.0,0.23974332]
[1725613771801,2.22931892,55928.0,55927.0,0.23974332]
[1725613772011,2.24931892,55928.0,55927.0,0.23974332]
[1725613772215,2.60692092,55928.0,55927.0,0.23974332]
[1725613772452,2.60692092,55928.0,55905.0,0.109]
[1725613772453,0.178871,55906.0,55905.0,0.109]
[1725613772678,0.209119,55906.0,55905.0,0.109]
[1725613772885,0.924605,55906.0,55905.0,0.12286776]
[1725613773093,0.924605,55906.0,55905.0,0.109]
[1725613773800,0.92460956,55906.0,55905.0,0.109]
[1725613774035,0.89439,55904.0,55903.0,0.1252]
[1725613774283,0.89439,55904.0,55902.0,0.1019]
[1725613774284,0.894405,55903.0,55902.0,0.1019]
[1725613774512,0.536662,55901.0,55900.0,0.001632]
[1725613774754,1.64023956,55901.0,55900.0,0.001632]